fUST/lending_fUST_20251216
["ID","MTS","AMOUNT","RATE_DAILY","PERIOD"]
[398677484,1765889205646,500.0,9.694e-05,2]
[398677485,1765889205686,500.0,9.694e-05,2]
[398677486,1765889205719,178.87577309,9.694e-05,2]
[398677487,1765889205754,500.0,9.694e-05,2]
[398677488,1765889205791,500.0,9.694e-05,2]
[398677489,1765889205825,500.0,9.694e-05,2]
[398677490,1765889205862,500.0,9.694e-05,2]
[398677491,1765889205902,500.0,9.694e-05,2]
[398677492,1765889205941,160.25986846,9.694e-05,2]
[398677493,1765889205983,500.0,9.694e-05,2]
[398677494,1765889206036,500.0,9.694e-05,2]
[398677495,1765889206097,500.0,9.694e-05,2]
[398677496,1765889206163,500.0,9.694e-05,2]
[398677497,1765889206248,500.0,9.694e-05,2]
[398677498,1765889206298,500.0,9.694e-05,2]
[398677499,1765889206351,500.0,9.694e-05,2]
[398677500,1765889206391,500.0,9.694e-05,2]
[398677501,1765889206457,500.0,9.694e-05,2]
[398677502,1765889206505,500.0,9.694e-05,2]
[398677503,1765889206544,230.99626067,9.694e-05,2]
[398677504,1765889207853,-269.00373933,9.694e-05,2]
[398677505,1765889207889,-500.0,9.694e-05,2]
[398677506,1765889207924,-309.51039899,9.694e-05,2]
[398677507,1765889207959,-329.13071967,9.694e-05,2]
[398677508,1765889207994,-500.0,9.694e-05,2]
[398677509,1765889208032,-500.0,9.694e-05,2]
[398677510,1765889208070,-500.0,9.694e-05,2]
[398677511,1765889208108,-500.0,9.694e-05,2]
[398677512,1765889208143,-500.0,9.694e-05,2]
[398677513,1765889208179,-500.0,9.694e-05,2]
[398677514,1765889214243,1184.72028402,9.598e-05,2]
[398677515,1765889225132,-198.07469748,9.502e-05,2]
[398677516,1765889234121,-360.92530252,9.502e-05,2]
[398677517,1765889234144,-101.18004362,9.597e-05,2]
[398677518,1765889237747,179.68,7.182e-05,2]
[398677519,1765889238187,359.37,7.835e-05,2]
[398677520,1765889245504,-301.57010704,8.488e-05,2]
[398677521,1765889247000,-196.43,8.403e-05,2]
[398677522,1765889248554,-193.54,8.403e-05,2]
[398677523,1765889252167,-149.08,8.403e-05,2]
[398677524,1765889252191,-59.02802274,8.488e-05,2]
[398677525,1765889254087,-178.45187022,8.488e-05,2]
[398677526,1765889254119,-718.74,9.141e-05,2]
[398677527,1765889254149,-198.81995638,9.597e-05,2]
[398677528,1765889294716,-300.0,9.501e-05,2]
[398677529,1765889294747,-1005.0,9.501e-05,2]
[398677530,1765889295384,-3832.97692615,9.502e-05,2]
[398677531,1765889295477,-58.15396317,9.502e-05,2]
[398677532,1765889295501,-9883.70207366,9.502e-05,2]
[398677533,1765889295614,-10000.01,9.598e-05,2]
[398677534,1765889295753,-3774.82296298,9.598e-05,2]
[398677535,1765889295783,-500.0,9.694e-05,2]
[398677536,1765889295811,-500.0,9.694e-05,2]
[398677537,1765889295840,-146.0445432,9.694e-05,2]
[398677538,1765889295924,-158.27498764,9.694e-05,2]
[398677539,1765889310069,-500.0,9.694e-05,2]
[398677540,1765889310102,-500.0,9.694e-05,2]
[398677541,1765889310132,-500.0,9.694e-05,2]
[398677542,1765889310163,-500.0,9.694e-05,2]
[398677543,1765889310191,-500.0,9.694e-05,2]
[398677544,1765889310219,-500.0,9.694e-05,2]
[398677545,1765889310247,-500.0,9.694e-05,2]
[398677546,1765889310277,-500.0,9.694e-05,2]
[398677547,1765889310305,-500.0,9.694e-05,2]
[398677548,1765889310333,-500.0,9.694e-05,2]
[398677549,1765889310380,-500.0,9.694e-05,2]
[398677550,1765889310407,-500.0,9.694e-05,2]
[398677551,1765889310435,-500.0,9.694e-05,2]
[398677552,1765889310465,-500.0,9.694e-05,2]
[398677553,1765889310493,-500.0,9.694e-05,2]
[398677554,1765889310527,-500.0,9.694e-05,2]
[398677555,1765889310555,-500.0,9.694e-05,2]
[398677556,1765889310584,-500.0,9.694e-05,2]
[398677557,1765889310612,-500.0,9.694e-05,2]
[398677558,1765889310641,-500.0,9.694e-05,2]
[398677559,1765889310759,-500.0,9.694e-05,2]
[398677560,1765889310790,-500.0,9.694e-05,2]
[398677561,1765889310820,-500.0,9.694e-05,2]
[398677562,1765889310850,-500.0,9.694e-05,2]
[398677563,1765889310885,-500.0,9.694e-05,2]
[398677564,1765889310914,-500.0,9.694e-05,2]
[398677565,1765889310943,-500.0,9.694e-05,2]
[398677566,1765889310971,-251.61355038,9.694e-05,2]
[398677567,1765889311000,-500.0,9.694e-05,2]
[398677568,1765889311030,-500.0,9.694e-05,2]
[398677569,1765889311183,-500.0,9.694e-05,2]
[398677570,1765889311213,-222.52697759,9.694e-05,2]
[398677571,1765889311242,-500.0,9.694e-05,2]
[398677572,1765889311271,-500.0,9.694e-05,2]
[398677573,1765889311299,-500.0,9.694e-05,2]
[398677574,1765889311326,-500.0,9.694e-05,2]
[398677575,1765889311354,-500.0,9.694e-05,2]
[398677576,1765889311548,-500.0,9.694e-05,2]
[398677577,1765889311580,-500.0,9.694e-05,2]
[398677578,1765889311609,-500.0,9.694e-05,2]
[398677579,1765889311639,-54.95604482,9.694e-05,2]
[398677580,1765889312329,-445.04395518,9.694e-05,2]
[398677581,1765889312339,-0.02,9.694e-05,2]
[398677582,1765889312358,-499.98,9.694e-05,2]
[398677583,1765889312366,-0.02,9.694e-05,2]
[398677584,1765889322412,206.62,7.211e-05,2]
[398677585,1765889322830,413.24,7.866e-05,2]
[398677586,1765889327393,-619.86,8.522e-05,2]
[398677587,1765889327423,-200.1727129,8.865e-05,2]
[398677588,1765889327455,-826.47,9.178e-05,2]
[398677589,1765889327524,-6707.0045742,9.597e-05,2]
[398677590,1765889327556,-1013.23456424,9.597e-05,2]
[398677591,1765889327586,-499.98,9.694e-05,2]
[398677592,1765889327615,-450.0,9.694e-05,2]
[398677593,1765889327644,-500.0,9.694e-05,2]
[398677594,1765889327672,-500.0,9.694e-05,2]
[398677595,1765889327701,-500.0,9.694e-05,2]
[398677596,1765889327731,-500.0,9.694e-05,2]
[398677597,1765889327923,-500.0,9.694e-05,2]
[398677598,1765889327954,-500.0,9.694e-05,2]
[398677599,1765889328079,-500.0,9.694e-05,2]
[398677600,1765889328115,-500.0,9.694e-05,2]
[398677601,1765889328147,-500.0,9.694e-05,2]
[398677602,1765889328179,-500.0,9.694e-05,2]
[398677603,1765889328210,-500.0,9.694e-05,2]
[398677604,1765889328241,-500.0,9.694e-05,2]
[398677605,1765889328272,-500.0,9.694e-05,2]
[398677606,1765889328302,-500.0,9.694e-05,2]
[398677607,1765889328333,-500.0,9.694e-05,2]
[398677608,1765889328364,-500.0,9.694e-05,2]
[398677609,1765889328478,-416.85431901,9.694e-05,2]
[398677610,1765889328510,-500.0,9.694e-05,2]
[398677611,1765889328542,-500.0,9.694e-05,2]
[398677612,1765889328574,-500.0,9.694e-05,2]
[398677613,1765889328606,-426.078548,9.694e-05,2]
[398677614,1765889342182,500.0,9.693e-05,2]
[398677615,1765889343020,184.47331872,9.693e-05,2]
[398677616,1765889343096,500.0,9.693e-05,2]
[398677617,1765889343804,186.54175257,9.693e-05,2]
[398677618,1765889343974,200.47994787,9.693e-05,2]
[398677619,1765889349048,212.98381322,9.693e-05,2]
[398677620,1765889349289,500.0,9.693e-05,2]
[398677621,1765889349697,500.0,9.693e-05,2]
[398677622,1765889349754,500.0,9.693e-05,2]
[398677623,1765889349809,500.0,9.693e-05,2]
[398677624,1765889349855,500.0,9.693e-05,2]
[398677625,1765889349913,504.00778562,9.693e-05,2]
[398677626,1765889356530,525.65764798,9.498e-05,2]
[398677627,1765889356554,482.46029261,9.498e-05,2]
[398677628,1765889362427,9517.54970739,9.598e-05,2]
[398677629,1765889362452,8204.40129264,9.598e-05,2]
[398677630,1765889402474,180.32,7.13e-05,2]
[398677631,1765889403023,360.64,7.778e-05,2]
[398677632,1765889403319,540.96,8.426e-05,2]
[398677633,1765889403758,721.29,9.074e-05,2]
[398677634,1765889408686,8196.8,9.598e-05,2]
[398677635,1765889408712,10000.01,9.598e-05,2]
[398677636,1765889408737,1803.21,9.598e-05,2]
[398677637,1765889412448,1200.0,9.694e-05,2]
[398677643,1765889431998,-1000.0,9.695e-05,2]
[398677660,1765889432194,-1901.16211057,9.695e-05,2]
[398677712,1765889432912,10000.01,9.598e-05,2]
[398677716,1765889432937,10000.01,9.598e-05,2]
[398677722,1765889438136,-910.73100734,9.598e-05,2]
[398678051,1765889442255,-2962.70769682,9.598e-05,2]
[398678055,1765889442285,-389.3341984,9.694e-05,2]
[398678157,1765889443234,-24191.77136133,9.695e-05,2]
[398678466,1765889446323,-1513.24810086,9.695e-05,2]
[398681272,1765889475888,-300.0,9.694e-05,2]
[398681577,1765889480604,9400.01,9.598e-05,2]
[398681665,1765889481556,157.37,7.179e-05,2]
[398681712,1765889481980,314.74,7.831e-05,2]
[398681959,1765889484860,-472.11,8.484e-05,2]
[398681963,1765889484887,-64.93921235,9.137e-05,2]
[398682216,1765889487274,-228.66176276,9.137e-05,2]
[398684333,1765889510428,-335.88902489,9.137e-05,2]
[398684361,1765889530398,-4085.86573402,9.598e-05,2]
[398684362,1765889530516,-4085.86573402,9.598e-05,2]
[398684363,1765889530541,-1828.27853196,9.598e-05,2]
[398684364,1765889549105,10000.01,9.597e-05,2]
[398684365,1765889549309,-4472.43,9.597e-05,2]
[398684366,1765889565084,1055.15,9.596e-05,2]
[398684367,1765889565108,3944.85,9.596e-05,2]
[398684368,1765889568180,150.0,7.157e-05,2]
[398684369,1765889568599,293.04,7.808e-05,2]
[398684370,1765889569010,439.56,8.459e-05,2]
[398684371,1765889569442,586.08,9.109e-05,2]
[398684372,1765889573242,3387.47365566,9.596e-05,2]
[398684374,1765889619906,257.0,9.595e-05,2]
[398684375,1765889643280,257.0,9.595e-05,2]
[398684376,1765889648059,150.0,7.169e-05,2]
[398684377,1765889648623,295.96,7.821e-05,2]
[398684378,1765889648860,239.04634434,8.472e-05,2]
[398684379,1765889648887,204.89365566,8.472e-05,2]
[398684380,1765889649263,591.92,9.124e-05,2]
[398684381,1765889667203,557.0,9.595e-05,2]
[398684382,1765889690240,4577.69918152,9.595e-05,2]
[398684383,1765889725215,178.4923053,4.433e-05,2]
[398684384,1765889725331,652.202018,8.865e-05,2]
[398684385,1765889727534,150.0,7.186e-05,2]
[398684386,1765889727963,265.88,7.839e-05,2]
[398684387,1765889728396,398.82,8.492e-05,2]
[398684388,1765889728855,531.76,9.145e-05,2]
[398684447,1765889807482,150.0,7.178e-05,2]
[398684448,1765889808380,231.6,7.831e-05,2]
[398684449,1765889808860,347.41,8.483e-05,2]
[398684450,1765889809265,463.21,9.136e-05,2]
[398684479,1765889850852,300.0,9.593e-05,2]
[398684507,1765889874847,300.0,9.593e-05,2]
[398684521,1765889888102,99.12283952,7.179e-05,2]
[398684522,1765889888131,50.87716048,7.179e-05,2]
[398684524,1765889888521,201.26,7.832e-05,2]
[398684525,1765889888946,301.89,8.485e-05,2]
[398684528,1765889889377,402.51,9.137e-05,2]
[398684534,1765889897599,1500.0,9.593e-05,2]
[398684535,1765889921284,1500.0,9.593e-05,2]
[398684536,1765889944147,6043.47283952,9.593e-05,2]
[398684537,1765889944174,599.53716048,9.593e-05,2]
[398684538,1765889969081,150.0,7.172e-05,2]
[398684539,1765889969539,174.39,7.824e-05,2]
[398684540,1765889969968,261.58,8.476e-05,2]
[398684541,1765889970387,348.77,9.128e-05,2]
[398684549,1765890048234,150.0,7.159e-05,2]
[398684550,1765890048846,150.59,7.81e-05,2]
[398684551,1765890049105,225.89,8.46e-05,2]
[398684552,1765890049986,301.18,9.111e-05,2]
[398684555,1765890127624,150.0,7.154e-05,2]
[398684556,1765890128023,150.0,7.805e-05,2]
[398684557,1765890128220,300.0,9.591e-05,2]
[398684558,1765890128479,194.29,8.455e-05,2]
[398684559,1765890128906,259.05,9.105e-05,2]
[398684560,1765890138407,1000.0,0.0001,10]
[398684561,1765890138431,1000.0,0.0001,10]
[398684562,1765890138453,1000.0,0.0001,10]
[398684563,1765890138475,1000.0,0.0001,10]
[398684564,1765890138497,1000.0,0.0001,10]
[398684565,1765890144179,165.3588376,9.461e-05,2]
[398684566,1765890150195,10000.0,0.00014,30]
[398684567,1765890151448,571.15708156,9.644e-05,2]
[398684568,1765890158815,5848.21692036,9.595e-05,2]
[398684569,1765890158841,10000.01,9.595e-05,2]
[398684570,1765890158869,10000.01,9.595e-05,2]
[398684571,1765890158896,10000.01,9.595e-05,2]
[398684572,1765890158924,10000.01,9.595e-05,2]
[398684573,1765890158951,10000.01,9.595e-05,2]
[398684574,1765890158976,10000.01,9.595e-05,2]
[398684575,1765890159002,10000.01,9.595e-05,2]
[398684576,1765890159027,10000.01,9.595e-05,2]
[398684577,1765890159053,10000.01,9.595e-05,2]
[398684578,1765890180192,10000.0,0.00014,30]
[398684579,1765890180987,-435.57854078,9.499e-05,2]
[398684580,1765890182693,300.0,9.594e-05,2]
[398684581,1765890186427,1200.0,9.594e-05,2]
[398684582,1765890190622,-171.89959443,9.595e-05,2]
[398684583,1765890193219,-189.3361304,9.595e-05,2]
[398684584,1765890196715,-287.84965235,9.595e-05,2]
[398684585,1765890198835,5000.0,9.595e-05,2]
[398684586,1765890199272,-173.35053538,9.595e-05,2]
[398684587,1765890201288,-304.18905342,9.595e-05,2]
[398684588,1765890206112,-226.6706763,9.595e-05,2]
[398684589,1765890207680,-211.11128396,9.595e-05,2]
[398684590,1765890209196,-300.8264848,9.595e-05,2]
[398684591,1765890211898,-163.66884929,9.595e-05,2]
[398684592,1765890212577,3032.0,0.00014,30]
[398684593,1765890213222,150.0,7.187e-05,2]
[398684594,1765890213406,-180.77251299,9.595e-05,2]
[398684595,1765890213631,170.54,7.841e-05,2]
[398684596,1765890214116,255.82,8.494e-05,2]
[398684597,1765890214569,341.09,9.148e-05,2]
[398684598,1765890214836,-235.29103229,9.595e-05,2]
[398684599,1765890216893,-302.82983736,9.595e-05,2]
[398684600,1765890218447,-164.04125098,9.595e-05,2]
[398684601,1765890222639,1711.40291844,9.595e-05,2]
[398684602,1765890222672,891.03409785,9.595e-05,2]
[398684603,1765890223386,-333.13726832,9.595e-05,2]
[398684604,1765890228252,-300.0,9.595e-05,2]
[398684605,1765890229755,-186.86826813,9.595e-05,2]
[398684606,1765890231935,-274.62483761,9.595e-05,2]
[398684607,1765890236606,-178.07719388,9.595e-05,2]
[398684608,1765890238707,-314.5545723,9.595e-05,2]
[398684609,1765890241273,-206.44085261,9.595e-05,2]
[398684610,1765890243119,300.0,9.594e-05,2]
[398684611,1765890244687,-193.91219098,9.595e-05,2]
[398684612,1765890246799,-289.91642082,9.595e-05,2]
[398684613,1765890248362,-166.39,9.595e-05,2]
[398684614,1765890251092,-189.76495407,9.595e-05,2]
[398684615,1765890253753,-166.65489909,9.595e-05,2]
[398684616,1765890257511,-261.35192524,9.595e-05,2]
[398684617,1765890260656,-225.37516239,9.595e-05,2]
[398684618,1765890262700,-172.93827778,9.595e-05,2]
[398684619,1765890265839,-254.61047468,9.595e-05,2]
[398684620,1765890268290,-364.74222744,9.595e-05,2]
[398684621,1765890268395,871.15708156,9.595e-05,2]
[398684622,1765890271518,-219.06,9.595e-05,2]
[398684623,1765890271941,211.6490849,9.594e-05,2]
[398684624,1765890273360,500.0,9.594e-05,2]
[398684625,1765890273401,500.0,9.594e-05,2]
[398684626,1765890273460,500.0,9.594e-05,2]
[398684627,1765890273500,458.0,9.594e-05,2]
[398684628,1765890273536,500.0,9.594e-05,2]
[398684629,1765890273755,500.0,9.594e-05,2]
[398684630,1765890273802,500.0,9.594e-05,2]
[398684631,1765890273838,649.99706399,9.594e-05,2]
[398684632,1765890273872,500.0,9.594e-05,2]
[398684633,1765890273906,500.0,9.594e-05,2]
[398684634,1765890273953,500.0,9.594e-05,2]
[398684635,1765890273990,500.0,9.594e-05,2]
[398684636,1765890274032,500.0,9.594e-05,2]
[398684637,1765890274066,500.0,9.594e-05,2]
[398684638,1765890274114,292.38107494,9.594e-05,2]
[398684639,1765890274147,325.79159676,9.594e-05,2]
[398684640,1765890274173,174.20840324,9.594e-05,2]
[398684641,1765890274205,500.0,9.594e-05,2]
[398684642,1765890274248,500.0,9.594e-05,2]
[398684643,1765890274280,500.0,9.594e-05,2]
[398684644,1765890274323,500.0,9.594e-05,2]
[398684645,1765890274356,500.0,9.594e-05,2]
[398684646,1765890274396,500.0,9.594e-05,2]
[398684647,1765890274426,500.0,9.594e-05,2]
[398684648,1765890274469,500.0,9.594e-05,2]
[398684649,1765890274506,500.0,9.594e-05,2]
[398684650,1765890274537,500.0,9.594e-05,2]
[398684651,1765890274572,500.0,9.594e-05,2]
[398684652,1765890274608,500.0,9.594e-05,2]
[398684653,1765890274644,500.0,9.594e-05,2]
[398684654,1765890274675,500.0,9.594e-05,2]
[398684655,1765890274723,500.0,9.594e-05,2]
[398684656,1765890274754,500.0,9.594e-05,2]
[398684657,1765890274797,500.0,9.594e-05,2]
[398684658,1765890274828,500.0,9.594e-05,2]
[398684659,1765890274860,500.0,9.594e-05,2]
[398684660,1765890274892,325.80159676,9.594e-05,2]
[398684661,1765890274916,174.19840324,9.594e-05,2]
[398684662,1765890274952,500.0,9.594e-05,2]
[398684663,1765890275006,500.0,9.594e-05,2]
[398684664,1765890275042,500.0,9.594e-05,2]
[398684665,1765890275091,500.0,9.594e-05,2]
[398684666,1765890275122,500.0,9.594e-05,2]
[398684667,1765890275161,500.0,9.594e-05,2]
[398684668,1765890275198,500.0,9.594e-05,2]
[398684669,1765890275241,500.0,9.594e-05,2]
[398684670,1765890275273,500.0,9.594e-05,2]
[398684671,1765890275326,500.0,9.594e-05,2]
[398684672,1765890275376,500.0,9.594e-05,2]
[398684673,1765890275419,500.0,9.594e-05,2]
[398684674,1765890275452,500.0,9.594e-05,2]
[398684675,1765890275493,272.67241314,9.594e-05,2]
[398684676,1765890275544,500.0,9.594e-05,2]
[398684677,1765890275587,500.0,9.594e-05,2]
[398684678,1765890275618,500.0,9.594e-05,2]
[398684679,1765890275649,500.0,9.594e-05,2]
[398684680,1765890275691,500.0,9.594e-05,2]
[398684681,1765890275723,500.0,9.594e-05,2]
[398684682,1765890275770,53.13918362,9.594e-05,2]
[398684683,1765890275972,446.86081638,9.594e-05,2]
[398684684,1765890276026,500.0,9.594e-05,2]
[398684685,1765890276071,500.0,9.594e-05,2]
[398684686,1765890276104,500.0,9.594e-05,2]
[398684687,1765890276144,500.0,9.594e-05,2]
[398684688,1765890276174,500.0,9.594e-05,2]
[398684689,1765890276214,500.0,9.594e-05,2]
[398684690,1765890276257,500.0,9.594e-05,2]
[398684691,1765890276289,500.0,9.594e-05,2]
[398684692,1765890276337,500.0,9.594e-05,2]
[398684693,1765890276368,500.0,9.594e-05,2]
[398684694,1765890276404,500.0,9.594e-05,2]
[398684695,1765890276453,500.0,9.594e-05,2]
[398684696,1765890276490,500.0,9.594e-05,2]
[398684697,1765890276524,500.0,9.594e-05,2]
[398684698,1765890276558,500.0,9.594e-05,2]
[398684699,1765890276606,500.0,9.594e-05,2]
[398684700,1765890276644,500.0,9.594e-05,2]
[398684701,1765890276673,500.0,9.594e-05,2]
[398684702,1765890276706,500.0,9.594e-05,2]
[398684703,1765890276739,53.14918362,9.594e-05,2]
[398684704,1765890276764,405.53450221,9.594e-05,2]
[398684705,1765890276798,500.0,9.594e-05,2]
[398684706,1765890276828,500.0,9.594e-05,2]
[398684707,1765890276988,-166.39,9.595e-05,2]
[398684708,1765890279162,-168.95212505,9.595e-05,2]
[398684709,1765890284140,500.0,9.594e-05,2]
[398684710,1765890284173,500.0,9.594e-05,2]
[398684711,1765890284205,500.0,9.594e-05,2]
[398684712,1765890284238,500.0,9.594e-05,2]
[398684713,1765890284270,500.0,9.594e-05,2]
[398684714,1765890284302,500.0,9.594e-05,2]
[398684715,1765890284334,500.0,9.594e-05,2]
[398684716,1765890284369,500.0,9.594e-05,2]
[398684717,1765890284400,500.0,9.594e-05,2]
[398684718,1765890284432,500.0,9.594e-05,2]
[398684719,1765890284469,500.0,9.594e-05,2]
[398684720,1765890284500,500.0,9.594e-05,2]
[398684721,1765890284531,500.0,9.594e-05,2]
[398684722,1765890284561,500.0,9.594e-05,2]
[398684723,1765890284592,500.0,9.594e-05,2]
[398684724,1765890284622,500.0,9.594e-05,2]
[398684725,1765890284672,500.0,9.594e-05,2]
[398684726,1765890284704,94.47549779,9.594e-05,2]
[398684727,1765890284728,405.52450221,9.594e-05,2]
[398684728,1765890284759,500.0,9.594e-05,2]
[398684729,1765890284788,-204.67519351,9.595e-05,2]
[398684730,1765890284823,500.0,9.594e-05,2]
[398684731,1765890284855,500.0,9.594e-05,2]
[398684732,1765890284887,500.0,9.594e-05,2]
[398684733,1765890284923,500.0,9.594e-05,2]
[398684734,1765890284954,500.0,9.594e-05,2]
[398684735,1765890284985,458.68368583,9.594e-05,2]
[398684736,1765890285017,500.0,9.594e-05,2]
[398684737,1765890285048,500.0,9.594e-05,2]
[398684738,1765890285080,500.0,9.594e-05,2]
[398684739,1765890285112,500.0,9.594e-05,2]
[398684740,1765890285144,500.0,9.594e-05,2]
[398684741,1765890285175,500.0,9.594e-05,2]
[398684742,1765890285213,500.0,9.594e-05,2]
[398684743,1765890285243,500.0,9.594e-05,2]
[398684744,1765890285273,500.0,9.594e-05,2]
[398684745,1765890285303,500.0,9.594e-05,2]
[398684746,1765890285335,500.0,9.594e-05,2]
[398684747,1765890285364,500.0,9.594e-05,2]
[398684748,1765890285402,135.80181196,9.594e-05,2]
[398684749,1765890285426,364.19818804,9.594e-05,2]
[398684750,1765890285459,500.0,9.594e-05,2]
[398684751,1765890285488,500.0,9.594e-05,2]
[398684752,1765890285522,500.0,9.594e-05,2]
[398684753,1765890285553,500.0,9.594e-05,2]
[398684754,1765890285591,500.0,9.594e-05,2]
[398684755,1765890287041,-176.07482749,9.595e-05,2]
[398684756,1765890288405,-304.40282163,9.595e-05,2]
[398684757,1765890290910,-161.19502046,9.595e-05,2]
[398684758,1765890291724,150.0,7.19e-05,2]
[398684759,1765890292141,150.0,7.844e-05,2]
[398684760,1765890292382,-166.39,9.595e-05,2]
[398684761,1765890292566,220.79,8.497e-05,2]
[398684762,1765890292616,435.57854078,9.595e-05,2]
[398684763,1765890292973,294.38,9.151e-05,2]
[398684764,1765890295131,442.98962662,9.594e-05,2]
[398684765,1765890295921,-190.80803293,9.595e-05,2]
[398684766,1765890300189,-209.87063011,9.595e-05,2]
[398684767,1765890301572,300.0,9.594e-05,2]
[398684768,1765890302982,-160.5538696,9.595e-05,2]
[398684769,1765890304772,300.0,9.594e-05,2]
[398684770,1765890305955,-188.00162203,9.595e-05,2]
[398684771,1765890326312,-5000.0,9.404e-05,2]
[398684772,1765890326551,-5000.0,9.499e-05,2]
[398684773,1765890326703,-530.46644952,9.594e-05,2]
[398684774,1765890326750,-500.0,9.594e-05,2]
[398684775,1765890326793,-500.0,9.594e-05,2]
[398684776,1765890326840,-500.0,9.594e-05,2]
[398684777,1765890326888,-439.74591866,9.594e-05,2]
[398684778,1765890326931,-234.72091311,9.594e-05,2]
[398684779,1765890326974,-390.32130081,9.594e-05,2]
[398684780,1765890327015,-1200.0,9.594e-05,2]
[398684781,1765890333587,1409.5008358,9.595e-05,2]
[398684782,1765890333620,3590.4991642,9.595e-05,2]
[398684783,1765890339460,500.0,9.594e-05,2]
[398684784,1765890339946,-197.17016264,9.595e-05,2]
[398684785,1765890341466,5000.0,9.595e-05,2]
[398684786,1765890342604,-169.94115071,9.595e-05,2]
[398684787,1765890345920,-219.29610698,9.595e-05,2]
[398684788,1765890350563,296.70158191,9.594e-05,2]
[398684789,1765890352256,-276.43256053,9.595e-05,2]
[398684790,1765890353150,289.70583842,9.594e-05,2]
[398684791,1765890357740,323.10341547,9.595e-05,2]
[398684792,1765890357774,4676.89658453,9.595e-05,2]
[398684793,1765890359216,-271.1823255,9.595e-05,2]
[398684794,1765890361163,-152.28097621,9.595e-05,2]
[398684795,1765890362456,300.0,9.594e-05,2]
[398684796,1765890363299,-192.5793027,9.595e-05,2]
[398684797,1765890366148,5000.0,9.595e-05,2]
[398684798,1765890370846,23.11341547,7.321e-05,2]
[398684799,1765890370888,126.88658453,7.321e-05,2]
[398684800,1765890371235,266.44,7.986e-05,2]
[398684801,1765890371637,399.66,8.652e-05,2]
[398684802,1765890372088,532.88,9.317e-05,2]
[398684803,1765890389647,1520.15263863,9.595e-05,2]
[398684804,1765890405254,-422.45768345,9.595e-05,2]
[398684805,1765890405301,-10000.01,9.595e-05,2]
[398684827,1765890422852,300.0,9.594e-05,2]
[398684863,1765890449137,150.0,7.31e-05,2]
[398684871,1765890449552,232.1,7.975e-05,2]
[398684876,1765890449982,348.16,8.64e-05,2]
[398684878,1765890450384,464.21,9.304e-05,2]
[398684879,1765890482639,300.0,9.594e-05,2]
[398684880,1765890485009,257.0,9.594e-05,2]
[398684881,1765890527138,150.0,7.318e-05,2]
[398684882,1765890527552,201.7,7.983e-05,2]
[398684883,1765890527962,302.55,8.648e-05,2]
[398684884,1765890528381,403.4,9.313e-05,2]
[398684885,1765890542705,6890.89,8.734e-05,2]
[398684886,1765890542737,5135.7391857,8.734e-05,2]
[398684887,1765890542945,300.0,9.594e-05,2]
[398684888,1765890543492,500.0,9.594e-05,2]
[398684889,1765890543536,500.0,9.594e-05,2]
[398684890,1765890543577,500.0,9.594e-05,2]
[398684891,1765890543621,500.0,9.594e-05,2]
[398684892,1765890543669,500.0,9.594e-05,2]
[398684893,1765890543709,500.0,9.594e-05,2]
[398684894,1765890543755,500.0,9.594e-05,2]
[398684895,1765890543798,332.93536239,9.594e-05,2]
[398684896,1765890543843,500.0,9.594e-05,2]
[398684897,1765890543890,231.33545191,9.594e-05,2]
[398684898,1765890543926,268.66454809,9.594e-05,2]
[398684899,1765890543972,500.0,9.594e-05,2]
[398684900,1765890544024,500.0,9.594e-05,2]
[398684904,1765890548093,-3053.34168692,9.595e-05,2]